Workbook

Sheet Sheet1
A1: Suppl. Table S6: Genomic coordinates of flowering time and vernalization genes. Twelve gene models map within regions of interest (ROI).
A2: ROI are shown in Suppl. Table S2 and Figure 1.
A3: * Genomic coordinates of FLC gene copies were taken from Chalhoub et al. (2014).
A4: Genomic coordinates of genes described in Schiessl et al. (2014) were obtained with BLASTn (see methods).
A5: “New” refers to additional BLAST results of genes listed in Schiessl et al. (2014) that yielded a lower E-value than the hits on the chromosomes reported by the authors.
A6: For example, TEM1 was identified by Schiessl et al. (2014) on A02, C02, A08, A09. The BLASTn search retrieved these 4 copies with E-values ranging from 6e-178 to 5e-141.
A7: One additional match for the TEM1 sequence was found on C05 with an E-value of zero. This putative TEM1 copy on C05 was labeled “new”.
A10: Chromosome | B10: Start (bp) | C10: End (bp) | D10: Gene name | E10: Source* | F10: Gene length (bp) | G10: ROI start (bp) | H10: ROI end (bp) | I10: Gene fully included
A11: A01 | B11: 869070 | C11: 869717 | D11: FD | E11: Schiessl et al. | F11: =Sheet1!C11-Sheet1!B11 -> 647
A12: A01 | B12: 7071225 | C12: 7071407 | D12: AGL24 | E12: Schiessl et al. | F12: =Sheet1!C12-Sheet1!B12 -> 182
A13: A01 | B13: 9599321 | C13: 9599452 | D13: VRN2 | E13: Schiessl et al. | F13: =Sheet1!C13-Sheet1!B13 -> 131
A14: A01 | B14: 17556836 | C14: 17557042 | D14: FT | E14: Schiessl et al. | F14: =Sheet1!C14-Sheet1!B14 -> 206
A15: A02 | B15: 134262 | C15: 138112 | D15: FLC | E15: Chalhoub et al. | F15: =Sheet1!C15-Sheet1!B15 -> 3850
A16: A02 | B16: 1277033 | C16: 1277983 | D16: COL2 | E16: Schiessl et al. | F16: =Sheet1!C16-Sheet1!B16 -> 950
A17: A02 | B17: 3863594 | C17: 3864691 | D17: VIN3 | E17: Schiessl et al. | F17: =Sheet1!C17-Sheet1!B17 -> 1097
A18: A02 | B18: 6378550 | C18: 6378768 | D18: FT | E18: Schiessl et al. | F18: =Sheet1!C18-Sheet1!B18 -> 218 | G18: 6033602 | H18: 9195754 | I18: yes
A19: A02 | B19: 7870216 | C19: 7871148 | D19: TEM1 | E19: Schiessl et al. | F19: =Sheet1!C19-Sheet1!B19 -> 932 | G19: 6033602 | H19: 9195754 | I19: yes
A20: A02 | B20: 9980647 | C20: 9982224 | D20: ZTL | E20: Schiessl et al. | F20: =Sheet1!C20-Sheet1!B20 -> 1577
A21: A03 | B21: 514560 | C21: 514778 | D21: TFL1 | E21: Schiessl et al. | F21: =Sheet1!C21-Sheet1!B21 -> 218
A22: A03 | B22: 1360871 | C22: 1364259 | D22: FLC | E22: Chalhoub et al. | F22: =Sheet1!C22-Sheet1!B22 -> 3388
A23: A03 | B23: 2994162 | C23: 2994536 | D23: TFL2 | E23: Schiessl et al. | F23: =Sheet1!C23-Sheet1!B23 -> 374
A24: A03 | B24: 4639860 | C24: 4640972 | D24: VIN3 | E24: Schiessl et al. | F24: =Sheet1!C24-Sheet1!B24 -> 1112
A25: A03 | B25: 6054401 | C25: 6055219 | D25: FRI | E25: Schiessl et al. | F25: =Sheet1!C25-Sheet1!B25 -> 818
A26: A03 | B26: 6239956 | C26: 6245205 | D26: FLC | E26: Chalhoub et al. | F26: =Sheet1!C26-Sheet1!B26 -> 5249
A27: A03 | B27: 7215803 | C27: 7216306 | D27: SPL3 | E27: Schiessl et al. | F27: =Sheet1!C27-Sheet1!B27 -> 503
A28: A03 | B28: 13671623 | C28: 13672333 | D28: CO | E28: Schiessl et al. | F28: =Sheet1!C28-Sheet1!B28 -> 710
A29: A03 | B29: 19893854 | C29: 19894036 | D29: FUL | E29: Schiessl et al. | F29: =Sheet1!C29-Sheet1!B29 -> 182
A30: A03 | B30: 23993314 | C30: 23993496 | D30: AGL24 | E30: Schiessl et al. | F30: =Sheet1!C30-Sheet1!B30 -> 182
A31: A04 | B31: 12323272 | C31: 12324132 | D31: CO | E31: new | F31: =Sheet1!C31-Sheet1!B31 -> 860 | G31: 11686783 | H31: 13678612 | I31: yes
A32: A04 | B32: 12695500 | C32: 12696480 | D32: ELF3 | E32: Schiessl et al. | F32: =Sheet1!C32-Sheet1!B32 -> 980 | G32: 11686783 | H32: 13678612 | I32: yes
A33: A04 | B33: 13111775 | C33: 13111993 | D33: TFL1 | E33: Schiessl et al. | F33: =Sheet1!C33-Sheet1!B33 -> 218 | G33: 11686783 | H33: 13678612 | I33: yes
A34: A04 | B34: 15462653 | C34: 15462982 | D34: SPL3 | E34: Schiessl et al. | F34: =Sheet1!C34-Sheet1!B34 -> 329
A35: A04 | B35: 18734958 | C35: 18735137 | D35: SOC1 | E35: Schiessl et al. | F35: =Sheet1!C35-Sheet1!B35 -> 179
A36: A05 | B36: 2629579 | C36: 2629758 | D36: SOC1 | E36: Schiessl et al. | F36: =Sheet1!C36-Sheet1!B36 -> 179
A37: A05 | B37: 5425566 | C37: 5425874 | D37: SPL3 | E37: Schiessl et al. | F37: =Sheet1!C37-Sheet1!B37 -> 308
A38: A05 | B38: 17434698 | C38: 17436776 | D38: PHYB | E38: Schiessl et al. | F38: =Sheet1!C38-Sheet1!B38 -> 2078
A39: A06 | B39: 3100616 | C39: 3102679 | D39: PHYA | E39: Schiessl et al. | F39: =Sheet1!C39-Sheet1!B39 -> 2063
A40: A06 | B40: 5423944 | C40: 5424528 | D40: GA3ox1 | E40: Schiessl et al. | F40: =Sheet1!C40-Sheet1!B40 -> 584
A41: A06 | B41: 14924798 | C41: 14925160 | D41: TFL1 | E41: new | F41: =Sheet1!C41-Sheet1!B41 -> 362
A42: A06 | B42: 15286043 | C42: 15286765 | D42: CDF1 | E42: Schiessl et al. | F42: =Sheet1!C42-Sheet1!B42 -> 722
A43: A07 | B43: 875116 | C43: 876699 | D43: ZTL | E43: Schiessl et al. | F43: =Sheet1!C43-Sheet1!B43 -> 1583
A44: A07 | B44: 18230499 | C44: 18230681 | D44: AP1 | E44: Schiessl et al. | F44: =Sheet1!C44-Sheet1!B44 -> 182
A45: A07 | B45: 18857375 | C45: 18857593 | D45: FT | E45: Schiessl et al. | F45: =Sheet1!C45-Sheet1!B45 -> 218
A46: A07 | B46: 20119520 | C46: 20119702 | D46: AP1 | E46: Schiessl et al. | F46: =Sheet1!C46-Sheet1!B46 -> 182
A47: A07 | B47: 22787816 | C47: 22788034 | D47: FT | E47: Schiessl et al. | F47: =Sheet1!C47-Sheet1!B47 -> 218
A48: A07 | B48: 22952795 | C48: 22954942 | D48: EFS | E48: Schiessl et al. | F48: =Sheet1!C48-Sheet1!B48 -> 2147
A49: A08 | B49: 8025123 | C49: 8025428 | D49: VRN2 | E49: Schiessl et al. | F49: =Sheet1!C49-Sheet1!B49 -> 305 | G49: 7556456 | H49: 10000000 | I49: yes
A50: A08 | B50: 12447382 | C50: 12448026 | D50: FD | E50: Schiessl et al. | F50: =Sheet1!C50-Sheet1!B50 -> 644
A51: A08 | B51: 14983079 | C51: 14984155 | D51: TEM1 | E51: Schiessl et al. | F51: =Sheet1!C51-Sheet1!B51 -> 1076
A52: A08 | B52: 15080266 | C52: 15080346 | D52: CAL | E52: Schiessl et al. | F52: =Sheet1!C52-Sheet1!B52 -> 80
A53: A08 | B53: 18440826 | C53: 18441932 | D53: CRY2 | E53: Schiessl et al. | F53: =Sheet1!C53-Sheet1!B53 -> 1106
A54: A09 | B54: 2721912 | C54: 2722094 | D54: FUL | E54: Schiessl et al. | F54: =Sheet1!C54-Sheet1!B54 -> 182
A55: A09 | B55: 18550493 | C55: 18551500 | D55: SUF4 | E55: Schiessl et al. | F55: =Sheet1!C55-Sheet1!B55 -> 1007
A56: A09 | B56: 21598512 | C56: 21599627 | D56: TEM1 | E56: Schiessl et al. | F56: =Sheet1!C56-Sheet1!B56 -> 1115
A57: A09 | B57: 22589413 | C57: 22591698 | D57: GI | E57: Schiessl et al. | F57: =Sheet1!C57-Sheet1!B57 -> 2285
A58: A09 | B58: 28572739 | C58: 28573539 | D58: ELF3 | E58: Schiessl et al. | F58: =Sheet1!C58-Sheet1!B58 -> 800
A59: A09 | B59: 29593989 | C59: 29594168 | D59: SVP | E59: Schiessl et al. | F59: =Sheet1!C59-Sheet1!B59 -> 179
A60: A09 | B60: 32434847 | C60: 32436826 | D60: PHYA | E60: Schiessl et al. | F60: =Sheet1!C60-Sheet1!B60 -> 1979 | G60: 30667322 | H60: 32917262 | I60: yes
A61: A10 | B61: 1356923 | C61: 1357678 | D61: CRY2 | E61: Schiessl et al. | F61: =Sheet1!C61-Sheet1!B61 -> 755
A62: A10 | B62: 4020806 | C62: 4021609 | D62: FRI | E62: Schiessl et al. | F62: =Sheet1!C62-Sheet1!B62 -> 803
A63: A10 | B63: 12774668 | C63: 12775363 | D63: TFL2 | E63: Schiessl et al. | F63: =Sheet1!C63-Sheet1!B63 -> 695
A64: A10 | B64: 13354572 | C64: 13355582 | D64: COL2 | E64: Schiessl et al. | F64: =Sheet1!C64-Sheet1!B64 -> 1010
A65: A10 | B65: 13358777 | C65: 13359523 | D65: CO | E65: Schiessl et al. | F65: =Sheet1!C65-Sheet1!B65 -> 746
A66: A10 | B66: 14998517 | C66: 15003097 | D66: FLC | E66: Chalhoub et al. | F66: =Sheet1!C66-Sheet1!B66 -> 4580
A67: A10 | B67: 16767409 | C67: 16767621 | D67: TFL1 | E67: Schiessl et al. | F67: =Sheet1!C67-Sheet1!B67 -> 212
A68: A10 | B68: 17106220 | C68: 17107080 | D68: ELF7 | E68: Schiessl et al. | F68: =Sheet1!C68-Sheet1!B68 -> 860
A69: C01 | B69: 1447474 | C69: 1448112 | D69: FD | E69: Schiessl et al. | F69: =Sheet1!C69-Sheet1!B69 -> 638
A70: C01 | B70: 11245514 | C70: 11245696 | D70: AGL24 | E70: Schiessl et al. | F70: =Sheet1!C70-Sheet1!B70 -> 182
A71: C01 | B71: 15024518 | C71: 15024649 | D71: VRN2 | E71: Schiessl et al. | F71: =Sheet1!C71-Sheet1!B71 -> 131 | G71: 14092276 | H71: 21747261 | I71: yes
A72: C02 | B72: 208462 | C72: 212039 | D72: FLC | E72: Chalhoub et al. | F72: =Sheet1!C72-Sheet1!B72 -> 3577
A73: C02 | B73: 1320757 | C73: 1320975 | D73: TFL1 | E73: Schiessl et al. | F73: =Sheet1!C73-Sheet1!B73 -> 218
A74: C02 | B74: 3343868 | C74: 3344830 | D74: COL2 | E74: Schiessl et al. | F74: =Sheet1!C74-Sheet1!B74 -> 962
A75: C02 | B75: 3990265 | C75: 3990873 | D75: TFL2 | E75: Schiessl et al. | F75: =Sheet1!C75-Sheet1!B75 -> 608
A76: C02 | B76: 6689076 | C76: 6690143 | D76: CO | E76: new | F76: =Sheet1!C76-Sheet1!B76 -> 1067
A77: C02 | B77: 6854825 | C77: 6855958 | D77: VIN3 | E77: Schiessl et al. | F77: =Sheet1!C77-Sheet1!B77 -> 1133
A78: C02 | B78: 14843905 | C78: 14844828 | D78: TEM1 | E78: Schiessl et al. | F78: =Sheet1!C78-Sheet1!B78 -> 923
A79: C02 | B79: 20907509 | C79: 20907727 | D79: FT | E79: Schiessl et al. | F79: =Sheet1!C79-Sheet1!B79 -> 218
A80: C02 | B80: 44722768 | C80: 44722950 | D80: AP1 | E80: Schiessl et al. | F80: =Sheet1!C80-Sheet1!B80 -> 182
A81: C02 | B81: 44722768 | C81: 44722950 | D81: FUL | E81: Schiessl et al. | F81: =Sheet1!C81-Sheet1!B81 -> 182
A82: C03 | B82: 673488 | C82: 673706 | D82: TFL1 | E82: Schiessl et al. | F82: =Sheet1!C82-Sheet1!B82 -> 218
A83: C03 | B83: 2000958 | C83: 2004565 | D83: FLC | E83: Chalhoub et al. | F83: =Sheet1!C83-Sheet1!B83 -> 3607
A84: C03 | B84: 4053405 | C84: 4053779 | D84: TFL2 | E84: Schiessl et al. | F84: =Sheet1!C84-Sheet1!B84 -> 374
A85: C03 | B85: 6233207 | C85: 6233743 | D85: VIN3 | E85: Schiessl et al. | F85: =Sheet1!C85-Sheet1!B85 -> 536
A86: C03 | B86: 8150947 | C86: 8151738 | D86: FRI | E86: Schiessl et al. | F86: =Sheet1!C86-Sheet1!B86 -> 791
A87: C03 | B87: 8403212 | C87: 8409962 | D87: FLC | E87: Chalhoub et al. | F87: =Sheet1!C87-Sheet1!B87 -> 6750
A88: C03 | B88: 9629428 | C88: 9629934 | D88: SPL3 | E88: Schiessl et al. | F88: =Sheet1!C88-Sheet1!B88 -> 506
A89: C03 | B89: 20155956 | C89: 20156570 | D89: CO | E89: Schiessl et al. | F89: =Sheet1!C89-Sheet1!B89 -> 614
A90: C03 | B90: 24845795 | C90: 24847852 | D90: PHYB | E90: Schiessl et al. | F90: =Sheet1!C90-Sheet1!B90 -> 2057
A91: C03 | B91: 36769293 | C91: 36769664 | D91: TFL1 | E91: Schiessl et al. | F91: =Sheet1!C91-Sheet1!B91 -> 371
A92: C03 | B92: 45939287 | C92: 45939469 | D92: CAL | E92: Schiessl et al. | F92: =Sheet1!C92-Sheet1!B92 -> 182
A93: C03 | B93: 53895464 | C93: 53895682 | D93: TFL1 | E93: Schiessl et al. | F93: =Sheet1!C93-Sheet1!B93 -> 218
A94: C03 | B94: 57629963 | C94: 57631882 | D94: VIN3 | E94: Schiessl et al. | F94: =Sheet1!C94-Sheet1!B94 -> 1919
A95: C04 | B95: 12437420 | C95: 12437638 | D95: FT | E95: Schiessl et al. | F95: =Sheet1!C95-Sheet1!B95 -> 218
A96: C04 | B96: 36478832 | C96: 36479011 | D96: SVP | E96: Schiessl et al. | F96: =Sheet1!C96-Sheet1!B96 -> 179
A97: C04 | B97: 38676293 | C97: 38677237 | D97: CO | E97: new | F97: =Sheet1!C97-Sheet1!B97 -> 944
A98: C04 | B98: 40250082 | C98: 40250300 | D98: TFL1 | E98: Schiessl et al. | F98: =Sheet1!C98-Sheet1!B98 -> 218
A99: C04 | B99: 44354584 | C99: 44355087 | D99: SPL3 | E99: Schiessl et al. | F99: =Sheet1!C99-Sheet1!B99 -> 503
A100: C04 | B100: 48077398 | C100: 48077577 | D100: SOC1 | E100: Schiessl et al. | F100: =Sheet1!C100-Sheet1!B100 -> 179
A101: C05 | B101: 1232182 | C101: 1232937 | D101: CRY2 | E101: Schiessl et al. | F101: =Sheet1!C101-Sheet1!B101 -> 755
A102: C05 | B102: 6900970 | C102: 6901554 | D102: GA3ox1 | E102: Schiessl et al. | F102: =Sheet1!C102-Sheet1!B102 -> 584
A103: C05 | B103: 11781365 | C103: 11783095 | D103: GI | E103: Schiessl et al. | F103: =Sheet1!C103-Sheet1!B103 -> 1730 | G103: 9757714 | H103: 12827428 | I103: yes
A104: C05 | B104: 13975457 | C104: 13976569 | D104: TEM1 | E104: new | F104: =Sheet1!C104-Sheet1!B104 -> 1112
A105: C05 | B105: 35605741 | C105: 35608698 | D105: PHYB | E105: Schiessl et al. | F105: =Sheet1!C105-Sheet1!B105 -> 2957
A106: C06 | B106: 27150436 | C106: 27150618 | D106: AP1 | E106: Schiessl et al. | F106: =Sheet1!C106-Sheet1!B106 -> 182 | G106: 23004201 | H106: 31831743 | I106: yes
A107: C06 | B107: 28554992 | C107: 28555210 | D107: FT | E107: Schiessl et al. | F107: =Sheet1!C107-Sheet1!B107 -> 218 | G107: 23004201 | H107: 31831743 | I107: yes
A108: C06 | B108: 30793611 | C108: 30793727 | D108: AP1 | E108: Schiessl et al. | F108: =Sheet1!C108-Sheet1!B108 -> 116 | G108: 23004201 | H108: 31831743 | I108: yes
A109: C06 | B109: 35777727 | C109: 35779988 | D109: EFS | E109: Schiessl et al. | F109: =Sheet1!C109-Sheet1!B109 -> 2261
A110: C07 | B110: 3537190 | C110: 3538767 | D110: ZTL | E110: Schiessl et al. | F110: =Sheet1!C110-Sheet1!B110 -> 1577
A111: C07 | B111: 40106231 | C111: 40106413 | D111: AGL24 | E111: Schiessl et al. | F111: =Sheet1!C111-Sheet1!B111 -> 182
A112: C07 | B112: 41868675 | C112: 41870567 | D112: VIN3 | E112: new | F112: =Sheet1!C112-Sheet1!B112 -> 1892
A113: C07 | B113: 43707334 | C113: 43708080 | D113: FD | E113: Schiessl et al. | F113: =Sheet1!C113-Sheet1!B113 -> 746
A114: C08 | B114: 475793 | C114: 476512 | D114: CRY2 | E114: Schiessl et al. | F114: =Sheet1!C114-Sheet1!B114 -> 719
A115: C08 | B115: 14154276 | C115: 14154584 | D115: SUF4 | E115: Schiessl et al. | F115: =Sheet1!C115-Sheet1!B115 -> 308
A116: C08 | B116: 16196255 | C116: 16196659 | D116: VRN2 | E116: Schiessl et al. | F116: =Sheet1!C116-Sheet1!B116 -> 404
A117: C08 | B117: 31769447 | C117: 31769908 | D117: ELF3 | E117: Schiessl et al. | F117: =Sheet1!C117-Sheet1!B117 -> 461
A118: C08 | B118: 32998508 | C118: 32998687 | D118: SVP | E118: Schiessl et al. | F118: =Sheet1!C118-Sheet1!B118 -> 179
A119: C08 | B119: 34908148 | C119: 34908732 | D119: GA3ox1 | E119: Schiessl et al. | F119: =Sheet1!C119-Sheet1!B119 -> 584
A120: C08 | B120: 36747190 | C120: 36749247 | D120: PHYA | E120: Schiessl et al. | F120: =Sheet1!C120-Sheet1!B120 -> 2057
A121: C08 | B121: 36747259 | C121: 36749250 | D121: PHYB | E121: Schiessl et al. | F121: =Sheet1!C121-Sheet1!B121 -> 1991
A122: C09 | B122: 29041913 | C122: 29042740 | D122: FRI | E122: Schiessl et al. | F122: =Sheet1!C122-Sheet1!B122 -> 827
A123: C09 | B123: 42752576 | C123: 42753451 | D123: TFL2 | E123: Schiessl et al. | F123: =Sheet1!C123-Sheet1!B123 -> 875
A124: C09 | B124: 43739067 | C124: 43740065 | D124: COL2 | E124: Schiessl et al. | F124: =Sheet1!C124-Sheet1!B124 -> 998
A125: C09 | B125: 43745679 | C125: 43746938 | D125: CO | E125: Schiessl et al. | F125: =Sheet1!C125-Sheet1!B125 -> 1259
A126: C09 | B126: 46345250 | C126: 46349992 | D126: FLC | E126: Chalhoub et al. | F126: =Sheet1!C126-Sheet1!B126 -> 4742
A127: C09 | B127: 46366545 | C127: 46371080 | D127: FLC | E127: Chalhoub et al. | F127: =Sheet1!C127-Sheet1!B127 -> 4535
